fUSD/lending_fUSD_20260529
["ID","MTS","AMOUNT","RATE_DAILY","PERIOD"]
[423277416,1780014818000,106.07843399,8.487e-05,2]
[423277419,1780014818000,94.70792288,9.194e-05,2]
[423277418,1780014818000,59.59207712,9.194e-05,2]
[423277417,1780014818000,48.22156601,8.487e-05,2]
[423277421,1780014819000,154.3,0.00010608,2]
[423277424,1780015088000,-142.18635687,0.00011265,2]
[423277425,1780015142000,-107.81364313,0.00011265,2]
[423277426,1780015155000,150.0,0.00028,120]
[423277427,1780015195000,-183.9406873,0.00012423,7]
[423277428,1780015216000,169.0,0.00026999,120]
[423277429,1780015456000,-154.3,0.00011316,2]
[423277430,1780015478000,152.0,0.00011768,30]
[423277431,1780015480000,152.0,0.00027606,120]
[423277432,1780015508000,325.86872557,0.00011092,7]
[423277433,1780015513000,530.0,0.0002653,120]
[423277434,1780015515000,530.0,0.00027857,120]
[423277435,1780015569000,150.0,0.0001273,120]
[423277436,1780015605000,-215.50460005,0.00011875,2]
[423277438,1780015607000,152.0,0.00027291,120]
[423277437,1780015607000,152.0,0.00011769,30]
[423277439,1780015641000,159.37,6.365e-05,2]
[423277445,1780015642000,159.37,0.00010608,2]
[423277444,1780015642000,159.37,9.901e-05,2]
[423277443,1780015642000,159.37,9.194e-05,2]
[423277441,1780015642000,159.37,7.78e-05,2]
[423277442,1780015642000,159.37,8.487e-05,2]
[423277440,1780015642000,159.37,7.072e-05,2]
[423277446,1780015666000,152.0,0.00027288,120]
[423277447,1780015762000,-159.37,0.00011316,2]
[423277448,1780015763000,1000.0,0.0002808,120]
[423277449,1780015781000,152.0,0.00011769,30]
[423277450,1780015782000,152.0,0.00027288,120]
[423277452,1780015809000,371.0,0.0002657,120]
[423277451,1780015809000,500.0,0.00028081,120]
[423277453,1780015812000,371.0,0.00027899,120]
[423277476,1780015832000,-2000.0,0.0001273,2]
[423277480,1780015832000,-20491.29,0.0001273,2]
[423277479,1780015832000,-200.0,0.0001273,2]
[423277485,1780015832000,-250.0,0.00012873,2]
[423277487,1780015832000,-500.0,0.00012965,2]
[423277486,1780015832000,-500.0,0.00012965,2]
[423277495,1780015832000,-500.0,0.00012965,2]
[423277494,1780015832000,-500.0,0.00012965,2]
[423277499,1780015832000,-542.27442552,0.00012965,2]
[423277497,1780015832000,-500.0,0.00012965,2]
[423277489,1780015832000,-500.0,0.00012965,2]
[423277493,1780015832000,-500.0,0.00012965,2]
[423277491,1780015832000,-500.0,0.00012965,2]
[423277498,1780015832000,-500.0,0.00012965,2]
[423277488,1780015832000,-500.0,0.00012965,2]
[423277492,1780015832000,-500.0,0.00012965,2]
[423277482,1780015832000,-483.72,0.0001273,2]
[423277496,1780015832000,-227.46820818,0.00012965,2]
[423277481,1780015832000,-150.0,0.0001273,2]
[423277469,1780015832000,-172.00765474,0.00012573,2]
[423277477,1780015832000,-2000.0,0.0001273,2]
[423277459,1780015832000,-215.50460005,0.00011904,2]
[423277460,1780015832000,-209.03147293,0.00011912,2]
[423277462,1780015832000,-250.0,0.00011921,2]
[423277461,1780015832000,-160.0,0.00011912,2]
[423277463,1780015832000,-25.24892402,0.00012023,2]
[423277464,1780015832000,-129.05107598,0.00012023,2]
[423277465,1780015832000,-159.37,0.00012023,2]
[423277466,1780015832000,-1200.0,0.00012138,2]
[423277484,1780015832000,-159.37,0.0001273,2]
[423277468,1780015832000,-127.99234526,0.00012573,2]
[423277471,1780015832000,-664.80129986,0.0001273,2]
[423277473,1780015832000,-1024.97,0.0001273,2]
[423277470,1780015832000,-179.54966885,0.0001263,2]
[423277472,1780015832000,-451.47870014,0.0001273,2]
[423277474,1780015832000,-3483.15,0.0001273,2]
[423277475,1780015832000,-1099.94,0.0001273,2]
[423277483,1780015832000,-154.3,0.0001273,2]
[423277478,1780015832000,-1000.0,0.0001273,2]
[423277467,1780015832000,-335.45867998,0.00012473,2]
[423277503,1780015832000,-1680.0,0.00013352,2]
[423277490,1780015832000,-500.0,0.00012965,2]
[423277502,1780015832000,-758.705671,0.00013329,2]
[423277548,1780015832000,-1687.0,0.00014056,2]
[423277546,1780015832000,-152.0,0.00013975,2]
[423277549,1780015832000,-442.0,0.00014084,2]
[423277550,1780015832000,-166.66,0.0001411,2]
[423277547,1780015832000,-150.0,0.00013987,2]
[423277551,1780015832000,-150.0,0.00014112,2]
[423277539,1780015832000,-166.66,0.00013973,2]
[423277541,1780015832000,-152.0,0.00013974,7]
[423277552,1780015832000,-837.0,0.00014193,2]
[423277553,1780015832000,-856.0,0.00014193,2]
[423277554,1780015832000,-1477.0,0.00014193,2]
[423277556,1780015832000,-1577.0,0.00014222,2]
[423277561,1780015832000,-340.1,0.00014274,2]
[423277555,1780015832000,-166.76,0.00014194,2]
[423277558,1780015832000,-150.0,0.00014237,2]
[423277559,1780015832000,-150.0,0.00014237,2]
[423277557,1780015832000,-150.0,0.00014237,2]
[423277560,1780015832000,-166.66,0.00014247,2]
[423277500,1780015832000,-166.76,0.00013112,2]
[423277544,1780015832000,-152.0,0.00013974,7]
[423277537,1780015832000,-244.0,0.00013926,2]
[423277508,1780015832000,-150.0,0.00013488,2]
[423277533,1780015832000,-166.66,0.00013836,2]
[423277501,1780015832000,-2543.12110716,0.00013177,2]
[423277507,1780015832000,-150.0,0.00013488,2]
[423277509,1780015832000,-150.0,0.00013488,2]
[423277535,1780015832000,-150.0,0.00013862,2]
[423277505,1780015832000,-150.0,0.00013488,2]
[423277506,1780015832000,-150.0,0.00013488,2]
[423277511,1780015832000,-150.0,0.00013698,2]
[423277514,1780015832000,-1410.64,0.00013699,2]
[423277530,1780015832000,-163.53,0.00013817,2]
[423277504,1780015832000,-150.0,0.00013488,2]
[423277528,1780015832000,-420.0,0.00013794,2]
[423277516,1780015832000,-200.0,0.00013699,2]
[423277524,1780015832000,-991.0,0.00013744,2]
[423277518,1780015832000,-519.0,0.00013716,2]
[423277526,1780015832000,-275.0,0.00013744,2]
[423277510,1780015832000,-150.0,0.00013613,2]
[423277522,1780015832000,-150.0,0.00013737,2]
[423277512,1780015832000,-166.66,0.00013699,2]
[423277520,1780015832000,-191.0,0.00013716,2]
[423277586,1780015833000,-151.0,0.000146,2]
[423277581,1780015833000,-151.0,0.000146,2]
[423277576,1780015833000,-477.92,0.00014577,2]
[423277580,1780015833000,-151.0,0.000146,2]
[423277588,1780015833000,-8500.0,0.000146,5]
[423277598,1780015833000,-500.0,0.00014756,2]
[423277590,1780015833000,-477.92,0.00014647,2]
[423277591,1780015833000,-2351.0,0.00014687,2]
[423277589,1780015833000,-150.0,0.00014612,2]
[423277587,1780015833000,-151.0,0.000146,2]
[423277597,1780015833000,-500.0,0.00014756,2]
[423277596,1780015833000,-500.0,0.00014756,2]
[423277593,1780015833000,-150.0,0.00014737,2]
[423277592,1780015833000,-10600.0,0.000147,5]
[423277594,1780015833000,-477.92,0.00014754,2]
[423277584,1780015833000,-151.0,0.000146,2]
[423277595,1780015833000,-171.94830284,0.00014756,2]
[423277585,1780015833000,-151.0,0.000146,2]
[423277572,1780015833000,-6300.0,0.000145,5]
[423277583,1780015833000,-151.0,0.000146,2]
[423277562,1780015833000,-2100.0,0.000143,5]
[423277564,1780015833000,-2000.0,0.00014321,2]
[423277574,1780015833000,-150.0,0.00014567,2]
[423277563,1780015833000,-1116.28,0.00014321,2]
[423277565,1780015833000,-483.72,0.00014321,2]
[423277567,1780015833000,-166.66,0.00014384,2]
[423277568,1780015833000,-4200.0,0.000144,5]
[423277582,1780015833000,-151.0,0.000146,2]
[423277569,1780015833000,-150.0,0.00014487,2]
[423277571,1780015833000,-6525.26,0.00014497,2]
[423277570,1780015833000,-10439.12,0.00014497,2]
[423277573,1780015833000,-477.92,0.00014517,2]
[423277575,1780015833000,-191.24295835,0.00014567,2]
[423277578,1780015833000,-151.0,0.000146,2]
[423277577,1780015833000,-151.0,0.000146,2]
[423277579,1780015833000,-151.0,0.000146,2]
[423277601,1780015833000,-2500.0,0.00014772,2]
[423277599,1780015833000,-500.0,0.00014756,2]
[423277566,1780015833000,-150.0,0.00014362,2]
[423277607,1780015833000,-227.07851434,0.00014833,2]
[423277622,1780015833000,-500.0,0.00014898,2]
[423277628,1780015833000,-500.0,0.00014899,2]
[423277632,1780015833000,-500.0,0.00014899,2]
[423277631,1780015833000,-500.0,0.00014899,2]
[423277626,1780015833000,-500.0,0.00014898,2]
[423277629,1780015833000,-500.0,0.00014899,2]
[423277630,1780015833000,-500.0,0.00014899,2]
[423277625,1780015833000,-151.1562563,0.00014898,2]
[423277627,1780015833000,-322.72417094,0.00014898,2]
[423277635,1780015833000,-201705.77380993,0.000149,2]
[423277633,1780015833000,-500.0,0.00014899,2]
[423277637,1780015833000,-646.62018074,0.000149,2]
[423277639,1780015833000,-618.20542942,0.000149,2]
[423277638,1780015833000,-3813.50657851,0.000149,2]
[423277636,1780015833000,-326.80947795,0.000149,2]
[423277602,1780015833000,-227.07851438,0.000148,2]
[423277634,1780015833000,-500.0,0.00014899,2]
[423277623,1780015833000,-234.54187306,0.00014898,2]
[423277624,1780015833000,-500.0,0.00014898,2]
[423277617,1780015833000,-2000.0,0.0001487,2]
[423277603,1780015833000,-2100.0,0.000148,5]
[423277605,1780015833000,-255.0,0.00014821,2]
[423277608,1780015833000,-227.07851434,0.00014844,2]
[423277604,1780015833000,-227.07851434,0.00014811,2]
[423277606,1780015833000,-227.07851434,0.00014822,2]
[423277609,1780015833000,-227.07851434,0.00014856,2]
[423277621,1780015833000,-274.39597173,0.00014898,2]
[423277611,1780015833000,-227.07851434,0.00014867,2]
[423277612,1780015833000,-2000.0,0.0001487,2]
[423277600,1780015833000,-500.0,0.00014756,2]
[423277610,1780015833000,-150.0,0.00014861,2]
[423277613,1780015833000,-2000.0,0.0001487,2]
[423277620,1780015833000,-227.07851434,0.00014889,2]
[423277618,1780015833000,-227.07851434,0.00014878,2]
[423277615,1780015833000,-2000.0,0.0001487,2]
[423277619,1780015833000,-500.0,0.0001488,2]
[423277616,1780015833000,-2000.0,0.0001487,2]
[423277614,1780015833000,-2000.0,0.0001487,2]
[423277640,1780015835000,-1271.14161176,0.000149,2]
[423277641,1780015835000,-996.68444733,0.000149,2]
[423277642,1780015837000,500.00000001,0.00028082,120]
[423277649,1780015838000,-3117.44494122,0.000149,2]
[423277648,1780015838000,-500.0,0.00014899,2]
[423277647,1780015838000,-166.13,0.00013699,2]
[423277650,1780015838000,-1432.72139523,0.000149,2]
[423277653,1780015838000,-1122.70891671,0.000149,2]
[423277652,1780015838000,-2469.969733,0.000149,2]
[423277651,1780015838000,-362.49844767,0.000149,2]
[423277654,1780015838000,-403.83647465,0.000149,2]
[423277688,1780015840000,-461.27380201,0.000149,2]
[423277681,1780015840000,-269.07504751,0.000149,2]
[423277658,1780015840000,-365.18569495,0.000149,2]
[423277730,1780015841000,-150.0,0.00014986,2]
[423277743,1780015841000,-500.0,0.00014998,2]
[423277736,1780015841000,-202.826,0.00014988,2]
[423277734,1780015841000,-3528.471,0.00014988,2]
[423277742,1780015841000,-4962.6463475,0.00014998,2]
[423277738,1780015841000,-151.0,0.00014997,2]
[423277747,1780015841000,-500.0,0.00014998,4]
[423277745,1780015841000,-500.0,0.00014998,3]
[423277728,1780015841000,-150.0,0.00014986,2]
[423277751,1780015841000,-500.0,0.00014999,5]
[423277749,1780015841000,-500.0,0.00014998,2]
[423277753,1780015841000,-500.0,0.00014999,6]
[423277755,1780015841000,-500.0,0.00014999,7]
[423277757,1780015841000,-500.0,0.00014999,8]
[423277740,1780015841000,-1286.2921788,0.00014998,2]
[423277722,1780015841000,-150.0,0.00014986,2]
[423277724,1780015841000,-150.0,0.00014986,2]
[423277726,1780015841000,-150.0,0.00014986,2]
[423277696,1780015841000,-28972.31741141,0.000149,2]
[423277697,1780015841000,-11372.3282,0.000149,2]
[423277700,1780015841000,-5000.0,0.000149,2]
[423277702,1780015841000,-2100.0,0.000149,5]
[423277707,1780015841000,-18183.7049076,0.0001497,2]
[423277706,1780015841000,-203.33101853,0.000149,2]
[423277698,1780015841000,-178.75644311,0.000149,2]
[423277704,1780015841000,-227.07851434,0.000149,2]
[423277717,1780015841000,-3890.3774971,0.00014978,2]
[423277715,1780015841000,-64759.8911193,0.00014978,2]
[423277709,1780015841000,-361.71,0.00014977,2]
[423277713,1780015841000,-500.0,0.00014977,2]
[423277719,1780015841000,-3596.2293544,0.00014978,2]
[423277711,1780015841000,-500.0,0.00014977,2]
[423277768,1780015841000,-500.0,0.00014999,14]
[423277732,1780015841000,-150.0,0.00014986,2]
[423277767,1780015841000,-500.0,0.00014999,13]
[423277798,1780015841000,-500.0,0.00014999,2]
[423277759,1780015841000,-500.0,0.00014999,9]
[423277810,1780015841000,-500.0,0.00014999,2]
[423277808,1780015841000,-500.0,0.00014999,2]
[423277800,1780015841000,-400.12952932,0.00014999,2]
[423277813,1780015841000,-300.0,0.00014999,2]
[423277817,1780015841000,-300.0,0.00014999,2]
[423277821,1780015841000,-300.0,0.00014999,2]
[423277819,1780015841000,-300.0,0.00014999,2]
[423277815,1780015841000,-300.0,0.00014999,2]
[423277823,1780015841000,-666.0,0.00014999,2]
[423277770,1780015841000,-500.0,0.00014999,15]
[423277828,1780015841000,-666.0,0.00014999,2]
[423277836,1780015841000,-1619310.98109453,0.00015,2]
[423277830,1780015841000,-666.0,0.00014999,2]
[423277832,1780015841000,-2127.0,0.00015,5]
[423277834,1780015841000,-2090.0,0.00015,5]
[423277806,1780015841000,-500.0,0.00014999,2]
[423277804,1780015841000,-279.37187026,0.00014999,2]
[423277825,1780015841000,-300.0,0.00014999,2]
[423277796,1780015841000,-500.0,0.00014999,2]
[423277763,1780015841000,-500.0,0.00014999,11]
[423277761,1780015841000,-500.0,0.00014999,10]
[423277765,1780015841000,-500.0,0.00014999,12]
[423277772,1780015841000,-500.0,0.00014999,16]
[423277774,1780015841000,-377.85150412,0.00014999,17]
[423277776,1780015841000,-500.0,0.00014999,2]
[423277794,1780015841000,-500.0,0.00014999,2]
[423277780,1780015841000,-593.55,0.00014999,2]
[423277792,1780015841000,-500.0,0.00014999,2]
[423277778,1780015841000,-500.0,0.00014999,2]
[423277784,1780015841000,-500.0,0.00014999,2]
[423277786,1780015841000,-500.0,0.00014999,2]
[423277782,1780015841000,-500.0,0.00014999,2]
[423277788,1780015841000,-500.0,0.00014999,2]
[423277790,1780015841000,-500.0,0.00014999,2]
[423277802,1780015841000,-500.0,0.00014999,2]
[423278075,1780015843000,-467.9684,0.00014512,2]
[423278082,1780015843000,-425.6300503,0.00015,2]
[423278078,1780015843000,-1083.0149,0.00014512,2]
[423278080,1780015843000,-72.25487686,0.00015,2]
[423278437,1780015847000,-3932.54993834,0.00015,2]
[423278436,1780015847000,-310.24516055,0.00015,2]
[423278435,1780015847000,-329.69949354,0.00015,2]
[423278434,1780015847000,-478.68058516,0.00015,2]
[423278438,1780015852000,152.0,0.00011769,30]
[423278439,1780015853000,152.0,0.00027256,120]
[423278442,1780016108000,222.0,0.00026892,120]
[423278443,1780016124000,874.99,0.00028,120]
[423278444,1780016211000,201.76582169,0.00010902,2]
[423278445,1780016241000,-165.08112684,0.00011339,2]
[423278446,1780016295000,190.84,0.00010184,2]
[423278448,1780016407000,183.9406873,0.00011702,7]
[423278450,1780016408000,183.9406873,0.00011936,7]
[423278449,1780016408000,173.0,0.00026824,120]
[423278452,1780016553000,150.0,0.0001273,120]
[423278453,1780016586000,403.83647465,0.00011749,2]
[423278466,1780016708000,176.0,0.00026618,120]
[423278467,1780016711000,176.0,0.00027948,120]
[423278468,1780016775000,987.11396925,0.00028,120]
[423278469,1780016951000,1000.0,0.00028081,120]
[423278470,1780016971000,4422.24158282,0.00028,120]
[423278471,1780016975000,2773.4573417,0.00028082,120]
[423278472,1780017006000,177.0,0.00026954,120]
[423278507,1780017032000,-150.0,0.0001296,2]
[423278506,1780017032000,-152.0,0.00012946,7]
[423278501,1780017032000,-6620.22,0.0001273,2]
[423278502,1780017032000,-1200.0,0.00012818,2]
[423278499,1780017032000,-150.0,0.0001273,2]
[423278504,1780017032000,-500.0,0.00012944,2]
[423278498,1780017032000,-549.97,0.0001273,2]
[423278497,1780017032000,-1309.76,0.0001273,2]
[423278500,1780017032000,-2000.0,0.0001273,2]
[423278503,1780017032000,-150.0,0.00012833,2]
[423278495,1780017032000,-1000.0,0.0001273,2]
[423278505,1780017032000,-191.94091202,0.00012944,2]
[423278496,1780017032000,-150.0,0.0001273,2]
[423278490,1780017032000,-183.9406873,0.00012639,7]
[423278508,1780017032000,-150.0,0.00013087,2]
[423278489,1780017032000,-568.9784,0.0001263,2]
[423278491,1780017032000,-840.83699572,0.0001273,2]
[423278485,1780017032000,-209.03147293,0.0001226,2]
[423278492,1780017032000,-26764.72300428,0.0001273,2]
[423278493,1780017032000,-152.09,0.0001273,2]
[423278486,1780017032000,-183.9406873,0.00012288,7]
[423278488,1780017032000,-250.0,0.00012474,2]
[423278487,1780017032000,-586.26608507,0.00012474,2]
[423278484,1780017032000,-160.0,0.00012253,2]
[423278483,1780017032000,-215.50460005,0.00012212,2]
[423278481,1780017032000,-710.67535811,0.00012078,2]
[423278480,1780017032000,-1159.94357071,0.00012078,2]
[423278494,1780017032000,-2000.0,0.0001273,2]
[423278509,1780017032000,-183.9406873,0.00013107,7]
[423278482,1780017032000,-260.72061718,0.00012078,2]
[423278511,1780017032000,-150.0,0.00013341,2]
[423278538,1780017032000,-150.0,0.00013748,2]
[423278534,1780017032000,-794.0,0.00013699,2]
[423278539,1780017032000,-1903.0,0.00013753,2]
[423278537,1780017032000,-150.0,0.00013737,2]
[423278535,1780017032000,-500.0,0.00013699,2]
[423278536,1780017032000,-612.0,0.00013726,2]
[423278530,1780017032000,-150.0,0.00013683,2]
[423278529,1780017032000,-924.0,0.00013671,2]
[423278533,1780017032000,-500.0,0.00013699,2]
[423278510,1780017032000,-150.0,0.00013214,2]
[423278531,1780017032000,-166.66,0.00013699,2]
[423278528,1780017032000,-500.0,0.00013629,2]
[423278527,1780017032000,-150.0,0.00013618,2]
[423278523,1780017032000,-150.0,0.00013488,2]
[423278532,1780017032000,-200.0,0.00013699,2]
[423278522,1780017032000,-150.0,0.00013488,2]
[423278513,1780017032000,-304.69490977,0.00013458,2]
[423278518,1780017032000,-150.0,0.00013488,2]
[423278514,1780017032000,-186.73849309,0.00013458,7]
[423278515,1780017032000,-157.0,0.00013468,2]
[423278516,1780017032000,-150.0,0.00013488,2]
[423278517,1780017032000,-150.0,0.00013488,2]
[423278512,1780017032000,-500.0,0.00013355,2]
[423278525,1780017032000,-250.0,0.00013493,2]
[423278524,1780017032000,-150.0,0.00013488,2]
[423278521,1780017032000,-150.0,0.00013488,2]
[423278526,1780017032000,-150.0,0.00013553,2]
[423278520,1780017032000,-150.0,0.00013488,2]
[423278519,1780017032000,-150.0,0.00013488,2]
[423278555,1780017033000,-937.0,0.0001389,2]
[423278541,1780017033000,-597.0,0.00013808,2]
[423278552,1780017033000,-150.0,0.00013879,2]
[423278540,1780017033000,-250.0,0.0001378,2]
[423278550,1780017033000,-150.0,0.00013862,2]
[423278545,1780017033000,-1367.0,0.00013862,2]
[423278544,1780017033000,-166.66,0.00013836,2]
[423278543,1780017033000,-1692.0,0.00013835,2]
[423278542,1780017033000,-150.0,0.00013813,2]
[423278557,1780017033000,-652.9599991,0.00013902,2]
[423278548,1780017033000,-150.0,0.00013862,2]
[423278576,1780017033000,-500.0,0.00013973,2]
[423278570,1780017033000,-122.34000902,0.00013944,2]
[423278561,1780017033000,-1649.0,0.00013917,2]
[423278564,1780017033000,-150.0,0.00013944,2]
[423278574,1780017033000,-166.66,0.00013973,2]
[423278559,1780017033000,-500.0,0.00013903,2]
[423278566,1780017033000,-668.65999098,0.00013944,2]
[423278578,1780017033000,-150.0,0.00013987,2]
[423278581,1780017033000,-9649.54461523,0.0001399,2]
[423278595,1780017033000,-1299.22892134,0.0001399,2]
[423278597,1780017033000,-2434.79182097,0.0001399,2]
[423278572,1780017033000,-1990.0,0.00013971,2]
[423278623,1780017038000,-250.0,0.00014,2]
[423278622,1780017038000,-294.30577529,0.0001399,2]
[423278624,1780017038000,-150.0,0.00014009,2]
[423278626,1780017038000,-1680.0,0.000141,2]
[423278627,1780017038000,-166.66,0.0001411,2]
[423278628,1780017038000,-150.0,0.00014139,2]
[423278629,1780017038000,-312.53789612,0.00014177,2]
[423278630,1780017038000,-187.46210388,0.00014177,2]
[423278631,1780017038000,-112.53789612,0.00014204,2]
[423278625,1780017038000,-150.0,0.00014074,2]
[423278652,1780017040000,-150.0,0.000144,2]
[423278664,1780017040000,-3600.0,0.000147,5]
[423278658,1780017040000,-150.0,0.0001453,2]
[423278656,1780017040000,-150.0,0.00014487,2]
[423278653,1780017040000,-1400.0,0.000144,5]
[423278654,1780017040000,-500.0,0.00014451,2]
[423278663,1780017040000,-150.0,0.00014661,2]
[423278657,1780017040000,-2200.0,0.000145,5]
[423278655,1780017040000,-150.0,0.00014465,2]
[423278650,1780017040000,-150.0,0.00014335,2]
[423278641,1780017040000,-150.0,0.00014237,2]
[423278647,1780017040000,-700.0,0.000143,5]
[423278649,1780017040000,-1309.76,0.00014321,2]
[423278648,1780017040000,-2000.0,0.00014321,2]
[423278645,1780017040000,-166.66,0.00014247,2]
[423278643,1780017040000,-150.0,0.00014237,2]
[423278644,1780017040000,-150.0,0.00014237,2]
[423278651,1780017040000,-166.66,0.00014384,2]
[423278642,1780017040000,-150.0,0.00014237,2]
[423278640,1780017040000,-37.46210388,0.00014204,2]
[423278662,1780017040000,-150.0,0.00014612,2]
[423278646,1780017040000,-150.0,0.0001427,2]
[423278659,1780017040000,-150.0,0.00014595,2]
[423278680,1780017040000,-2000.0,0.0001485,2]
[423278660,1780017040000,-2900.0,0.000146,5]
[423278661,1780017040000,-150.0,0.00014612,2]
[423278685,1780017040000,-200.0,0.00014879,2]
[423278681,1780017040000,-150.0,0.00014856,2]
[423278684,1780017040000,-162.261,0.00014878,2]
[423278683,1780017040000,-2822.777,0.00014867,2]
[423278679,1780017040000,-2000.0,0.0001485,2]
[423278675,1780017040000,-192.07718021,0.00014808,2]
[423278674,1780017040000,-562.01375914,0.00014808,2]
[423278672,1780017040000,-164.17931115,0.00014808,2]
[423278673,1780017040000,-500.0,0.00014808,2]
[423278682,1780017040000,-2000.0,0.0001486,2]
[423278670,1780017040000,-967.344,0.000148,2]
[423278666,1780017040000,-150.0,0.00014726,2]
[423278669,1780017040000,-150.0,0.00014791,2]
[423278676,1780017040000,-575.90691965,0.00014808,2]
[423278677,1780017040000,-150.0,0.00014808,2]
[423278678,1780017040000,-1673.09291001,0.00014843,2]
[423278686,1780017040000,-500.0,0.0001488,2]
[423278667,1780017040000,-150.0,0.00014737,2]
[423278668,1780017040000,-350.0,0.00014767,2]
[423278671,1780017040000,-700.0,0.000148,5]
[423278665,1780017040000,-500.0,0.00014725,2]
[423278721,1780017041000,-150.0,0.00014986,2]
[423278714,1780017041000,-500.0,0.00014977,2]
[423278728,1780017041000,-500.0,0.00014999,2]
[423278727,1780017041000,-3010.0,0.00014999,5]
[423278716,1780017041000,-197.85,0.00014977,2]
[423278726,1780017041000,-151.0,0.00014997,2]
[423278723,1780017041000,-150.0,0.00014986,2]
[423278719,1780017041000,-150.0,0.00014986,2]
[423278720,1780017041000,-150.0,0.00014986,2]
[423278717,1780017041000,-150.0,0.00014986,2]
[423278736,1780017041000,-500.0,0.00014999,4]
[423278724,1780017041000,-150.0,0.00014986,2]
[423278722,1780017041000,-150.0,0.00014986,2]
[423278725,1780017041000,-10861.4,0.0001499,2]
[423278729,1780017041000,-500.0,0.00014999,2]
[423278730,1780017041000,-500.0,0.00014999,2]
[423278732,1780017041000,-522.04,0.00014999,2]
[423278737,1780017041000,-500.0,0.00014999,5]
[423278739,1780017041000,-500.0,0.00014999,7]
[423278709,1780017041000,-92161.4268644,0.00014953,2]
[423278733,1780017041000,-500.0,0.00014999,2]
[423278735,1780017041000,-500.0,0.00014999,3]
[423278718,1780017041000,-150.0,0.00014986,2]
[423278705,1780017041000,-10861.4,0.00014943,2]
[423278700,1780017041000,-152.7866302,0.000149,2]
[423278706,1780017041000,-3469.0113855,0.00014949,2]
[423278734,1780017041000,-500.0,0.00014999,2]
[423278690,1780017041000,-500.0,0.00014899,2]
[423278687,1780017041000,-200.0,0.0001488,2]
[423278689,1780017041000,-500.0,0.00014899,2]
[423278688,1780017041000,-350.0,0.00014885,2]
[423278692,1780017041000,-500.0,0.00014899,2]
[423278702,1780017041000,-405.71966649,0.000149,2]
[423278703,1780017041000,-287.57686168,0.000149,2]
[423278691,1780017041000,-500.0,0.00014899,2]
[423278694,1780017041000,-500.0,0.00014899,2]
[423278695,1780017041000,-500.0,0.00014899,2]
[423278701,1780017041000,-1922.69736956,0.000149,2]
[423278696,1780017041000,-178.75644311,0.000149,2]
[423278699,1780017041000,-1068.11746019,0.000149,2]
[423278693,1780017041000,-500.0,0.00014899,2]
[423278698,1780017041000,-700.0,0.000149,5]
[423278708,1780017041000,-14718.8211675,0.00014949,2]
[423278704,1780017041000,-150.0,0.00014921,2]
[423278711,1780017041000,-500.0,0.00014977,2]
[423278713,1780017041000,-500.0,0.00014977,2]
[423278715,1780017041000,-500.0,0.00014977,2]
[423278710,1780017041000,-1528.6789736,0.00014953,2]
[423278712,1780017041000,-500.0,0.00014977,2]